bitfinex/quotes_ETHUSD_20251122
["timestamp","ask_amount","ask_price","bid_price","bid_amount"]
[1763782906378,0.002,2754.6,2754.5,5.1768633]
[1763782907850,0.002,2754.6,2754.5,5.21316752]
[1763782908046,0.002,2754.6,2754.5,28.92853652]
[1763782908283,0.002,2754.6,2754.5,15.3745943]
[1763782908881,0.002,2754.6,2754.5,7.4309133]
[1763782909071,0.002,2754.6,2754.5,7.8089653]
[1763782909772,0.002,2754.6,2754.5,21.3202443]
[1763782910853,0.002,2754.7,2754.6,21.19065064]
[1763782911177,0.4745,2755.7,2754.7,1.31249664]
[1763782911386,0.4745,2755.7,2755.6,2.37898066]
[1763782911587,0.7902,2755.7,2755.6,2.37898066]
[1763782911776,0.7902,2755.7,2755.6,3.2859733]
[1763782914697,0.7902,2755.7,2755.6,0.90699264]
[1763782915506,0.7902,2755.7,2754.8,0.90699264]
[1763782915507,0.7902,2755.7,2755.0,2.37898066]
[1763782915688,0.4745,2755.6,2755.0,2.37898066]
[1763782916011,0.4745,2755.6,2754.8,2.37898066]
[1763782916160,0.0032,2754.9,2754.8,2.37898066]
[1763782916510,0.1249,2754.9,2754.8,3.52387137]
[1763782916800,0.5994,2754.9,2754.8,3.2859733]
[1763782919493,0.5994,2754.9,2754.8,0.90699264]
[1763782920584,0.5994,2754.9,2754.8,3.2859733]
[1763782920815,0.5994,2754.9,2754.8,7.0759733]
[1763782922739,0.5994,2754.9,2754.8,3.79]
[1763782922888,0.5994,2754.9,2754.6,0.001]
[1763782923086,0.4383,2754.7,2754.6,0.001]
[1763782923516,0.9128,2754.7,2754.6,0.001]
[1763782926081,1.67679156,2754.7,2754.6,0.001]
[1763782927355,2.5837842,2754.7,2754.6,0.001]
[1763782927853,2.5837842,2754.7,2754.1,0.001]
[1763782927854,0.0075,2754.5,2754.1,0.001]
[1763782928039,1.76679664,2754.6,2754.1,0.001]
[1763782928040,0.454,2754.2,2754.1,0.001]
[1763782928360,4.02327137,2754.2,2754.1,0.001]
[1763782928541,4.47757137,2754.2,2754.1,0.001]
[1763782928763,0.405504,2754.1,2753.4,0.001]
[1763782928916,0.2078,2753.5,2753.4,0.001]
[1763782929453,0.6621,2753.5,2753.4,0.001]
[1763782930623,1.067604,2753.5,2753.4,0.001]
[1763782930816,0.405504,2753.4,2753.1,0.001]
[1763782931044,0.845204,2753.3,2753.1,0.001]
[1763782931353,0.405504,2753.2,2753.1,0.001]
[1763782931559,0.876104,2753.2,2752.9,0.001]
[1763782931719,0.4355,2753.0,2752.9,0.001]
[1763782932122,0.405504,2752.9,2752.6,0.001]
[1763782932425,1.09915133,2752.9,2752.6,0.001]
[1763782932647,0.759904,2752.7,2752.6,0.001]
[1763782932849,0.3544,2752.7,2752.6,0.001]
[1763782933727,0.4543,2753.2,2752.6,0.4824]
[1763782934152,0.1958,2753.5,2752.8,3.70012836]
[1763782934336,0.6501,2753.5,2752.9,0.37364563]
[1763782934836,0.6501,2753.5,2753.0,0.6501]
[1763782935238,0.4543,2753.4,2753.0,0.6501]
[1763782935763,0.6501,2753.7,2753.0,1.1044]
[1763782937060,0.6501,2753.7,2753.0,4.8173356]
[1763782937359,0.4543,2753.6,2753.1,0.51909812]
[1763782940573,0.4543,2753.6,2753.2,0.4543]
[1763782941189,0.1958,2753.7,2753.2,4.6215356]
[1763782941536,0.1958,2753.7,2753.3,0.4543]
[1763782941740,0.6501,2753.7,2753.3,0.53312337]
[1763782942042,0.1958,2754.3,2753.6,0.4814]
[1763782942043,0.4543,2754.1,2753.6,0.4814]
[1763782942743,0.3746,2753.7,2753.6,0.90899264]
[1763782945452,0.8281,2753.7,2753.6,0.90899264]
[1763782946766,0.8281,2753.7,2753.1,7.5029356]
[1763782946973,0.4535,2753.6,2753.2,0.90699264]
[1763782947374,0.4535,2753.6,2753.3,3.79]
[1763782947747,0.3754,2753.4,2753.3,3.79]
[1763782948487,0.3754,2753.4,2753.3,4.2435]
[1763782948985,0.8281,2753.4,2753.3,4.2435]
[1763782949648,0.8281,2753.4,2753.3,0.4535]
[1763782949963,0.8281,2753.4,2752.6,0.001]
[1763782950168,0.4527,2753.3,2752.6,1.09320186]
[1763782950351,0.0045,2752.7,2752.6,1.09320186]
[1763782951073,0.4588,2752.7,2752.6,0.001]
[1763782955229,0.3746,2752.7,2752.6,0.001]
[1763782956680,0.8249,2752.7,2752.6,0.001]
[1763782959219,0.3746,2752.7,2752.6,0.001]
[1763782959518,0.1804,2753.2,2752.6,4.6804356]
[1763782959719,0.1804,2753.2,2752.6,5.0859396]
[1763782959886,0.6307,2753.2,2752.6,5.0859396]
[1763782960081,0.6307,2753.2,2752.6,5.96592712]
[1763782961126,0.1804,2753.4,2753.1,0.4773]
[1763782961725,0.3938,2753.2,2753.1,0.4773]
[1763782961921,0.3938,2753.2,2752.8,3.79]
[1763782962092,0.6307,2753.4,2753.1,0.4773]
[1763782962505,1.20074949,2753.4,2753.1,0.4773]
[1763782963594,1.20074949,2753.4,2753.1,0.9665]
[1763782963595,0.57004949,2753.4,2753.1,0.9665]
[1763782964990,0.57004949,2753.4,2753.1,0.4773]
[1763782965190,0.4872,2753.2,2753.0,4.88203885]
[1763782965529,0.0036,2753.1,2753.0,4.88203885]
[1763782967518,0.3573,2753.3,2753.0,5.37024274]
[1763782968213,0.3573,2753.3,2753.0,1.58024274]
[1763782968747,0.4859,2753.1,2753.0,1.58024274]
[1763782968950,0.4859,2753.1,2753.0,1.09203885]
[1763782970945,0.002,2753.3,2753.0,1.56933885]
[1763782971250,0.002,2753.3,2753.2,4.1902356]
[1763782971753,0.002,2753.3,2753.2,4.6794356]
[1763782973743,0.002,2753.3,2753.2,4.82501587]
[1763782973943,0.002,2753.3,2753.2,5.70630746]
[1763782976136,0.002,2753.3,2753.2,10.4033001]
[1763782982989,0.002,2753.3,2753.2,3.93558027]
[1763782983287,0.002,2753.3,2753.2,4.41288027]
[1763782985691,0.002,2753.3,2753.2,4.86788027]
[1763782985992,0.002,2753.3,2753.2,4.90420164]
[1763782986797,0.002,2753.3,2753.2,4.86788027]
[1763782986956,0.002,2753.3,2753.2,5.74575186]
[1763782987158,0.002,2753.3,2753.2,6.68906587]
[1763782987893,0.002,2753.3,2753.2,6.6527445]
[1763782988298,0.002,2753.3,2753.2,6.1977445]
[1763782988469,0.002,2753.3,2753.2,6.6527445]
[1763782988793,0.002,2753.3,2753.2,6.1977445]
[1763782988980,0.3851,2753.3,2753.2,5.7204445]
[1763782989374,0.002,2753.3,2753.2,6.1964445]
[1763782990686,0.002,2753.3,2753.2,6.6514445]
[1763782992910,0.8455,2753.3,2753.2,3.93558027]
[1763782993106,0.8455,2753.3,2753.0,3.79]
[1763782993293,0.4611,2753.2,2753.0,3.79]
[1763782993615,0.3831,2753.1,2753.0,3.79]
[1763782994120,0.8435,2753.1,2753.0,3.79]
[1763782994328,0.8435,2753.1,2752.9,3.79]
[1763782994619,0.0046,2752.9,2752.8,0.001]
[1763782994817,0.002,2753.3,2753.0,0.476]
[1763782995007,0.002,2753.3,2753.2,3.7129356]
[1763782995209,0.3851,2753.3,2753.2,3.7129356]
[1763782995409,0.3851,2753.3,2753.0,3.7129356]
[1763782995614,0.0038,2753.2,2753.1,0.03632269]
[1763782996422,0.002,2753.3,2753.1,0.51232269]
[1763782998233,0.002,2753.3,2753.2,0.476]
[1763782998918,0.002,2753.3,2753.1,0.80015992]
[1763782999419,0.002,2753.3,2753.2,0.476]
[1763782999929,0.002,2753.3,2753.2,4.266]
[1763783000603,0.002,2753.3,2753.2,4.721]
[1763783000803,0.002,2753.3,2753.2,5.71137591]
[1763783003241,0.002,2753.3,2753.2,5.25637591]
[1763783003539,0.002,2753.3,2753.2,5.4019477]
[1763783003903,0.002,2753.3,2753.2,5.8569477]
[1763783007142,0.002,2753.3,2753.2,5.4019477]
[1763783007906,0.002,2753.3,2753.2,3.79]
[1763783007907,0.8464,2753.3,2753.2,3.79]
[1763783012342,0.8464,2753.3,2753.1,3.79]
[1763783012656,0.5531,2753.2,2753.1,3.79]
[1763783012884,1.0237,2753.2,2753.1,3.79]
[1763783015683,1.0237,2753.2,2752.9,3.79]
[1763783015892,0.4512,2753.1,2752.9,3.79]
[1763783016051,0.4804,2753.0,2752.9,3.79]
[1763783016485,0.9316,2753.0,2752.9,3.79]
[1763783017592,0.9316,2753.0,2752.8,0.001]
[1763783017788,0.092,2753.2,2752.8,0.001]
[1763783017789,0.456,2752.9,2752.8,0.001]
[1763783020002,0.73977165,2752.9,2752.8,0.001]
[1763783020303,0.456,2752.9,2752.8,0.001]
[1763783027431,1.02611411,2752.9,2752.8,0.001]
[1763783027792,0.456,2752.9,2752.8,0.001]
[1763783027981,0.0048,2752.9,2752.8,0.001]
[1763783028588,0.456,2752.9,2752.8,0.001]
[1763783030798,1.02612173,2752.9,2752.8,0.001]
[1763783031741,0.57492173,2752.9,2752.8,0.001]
[1763783031955,1.02612173,2752.9,2752.8,0.001]
[1763783032127,0.57012173,2752.9,2752.8,0.4887]
[1763783032743,1.50172173,2752.9,2752.8,0.001]
[1763783033353,0.57012173,2752.9,2752.8,0.4887]
[1763783034551,1.05052173,2752.9,2752.8,0.4887]
[1763783034745,1.05052173,2752.9,2752.8,0.001]
[1763783036734,0.57012173,2752.9,2752.8,0.4887]
[1763783038022,1.05252173,2752.9,2752.8,0.001]
[1763783038351,1.50372173,2752.9,2752.8,0.001]
[1763783043179,1.17487144,2752.9,2752.8,0.001]
[1763783043330,0.9336,2752.9,2752.8,0.001]
[1763783046173,2.2915033,2752.9,2752.8,0.001]
[1763783046354,2.63108734,2752.9,2752.8,0.001]
[1763783046534,3.20130921,2752.9,2752.8,0.001]
[1763783047694,3.98342564,2752.9,2752.8,0.001]
[1763783049394,3.15590255,2752.9,2752.8,0.001]
[1763783050208,1.84340591,2752.9,2752.8,0.001]
[1763783050409,0.4824,2752.9,2752.8,0.001]
[1763783050704,0.002,2752.9,2752.8,0.4672]
[1763783051210,0.002,2752.9,2752.8,3.30738695]
[1763783051508,0.002,2752.9,2752.8,0.9254]
[1763783053018,0.002,2752.9,2752.8,0.4672]
[1763783053409,0.57216089,2752.9,2752.8,0.4672]
[1763783056111,0.57216089,2752.9,2752.8,0.9254]
[1763783056828,0.57216089,2752.9,2752.8,0.4672]
[1763783057214,0.57216089,2752.9,2752.8,0.9254]
[1763783057814,0.002,2752.9,2752.8,0.9254]
[1763783058418,0.4627,2752.9,2752.8,0.001]
[1763783058812,0.002,2752.9,2752.8,0.001]
[1763783058998,0.002,2752.9,2752.8,0.4672]
[1763783061337,0.002,2752.9,2752.8,6.01869337]
[1763783063704,0.002,2752.9,2752.8,6.16429696]
[1763783066315,0.002,2752.9,2752.8,9.95429696]
[1763783071028,0.57207738,2752.9,2752.8,9.95429696]
[1763783071429,0.002,2752.9,2752.8,9.95429696]
[1763783074454,0.57207725,2752.9,2752.8,9.95429696]
[1763783075545,0.57207725,2752.9,2752.8,6.16429696]
[1763783075970,0.57207725,2752.9,2752.8,6.01869337]
[1763783080195,0.57207725,2752.9,2752.8,0.001]
[1763783080196,1.59597725,2752.9,2752.8,0.001]
[1763783083390,1.14487725,2752.9,2752.8,0.001]
[1763783083594,1.59597725,2752.9,2752.8,0.001]
[1763783084498,1.0259,2752.9,2752.8,0.001]
[1763783085402,1.0259,2752.9,2752.8,5.71782702]
[1763783085403,0.002,2752.9,2752.8,5.71782702]
[1763783085696,0.002,2752.9,2752.8,6.66870972]
[1763783090007,0.002,2752.9,2752.8,10.45870972]
[1763783091505,0.002,2752.9,2752.8,11.51128687]
[1763783095811,0.4746,2752.9,2752.8,5.35296721]
[1763783096128,0.4746,2752.9,2752.8,6.31784802]
[1763783096402,0.002,2752.9,2752.8,9.16461153]
[1763783096608,0.002,2752.9,2752.8,9.65341153]
[1763783097011,0.002,2752.9,2752.8,9.50782702]
[1763783097173,0.002,2752.9,2752.8,10.45870972]
[1763783101723,0.002,2752.9,2752.8,11.0307252]
[1763783102341,0.002,2752.9,2752.8,10.0764252]
[1763783102502,0.5742,2752.9,2752.8,6.74427899]
[1763783102704,1.0259,2752.9,2752.8,3.791]
[1763783104246,1.0259,2752.9,2752.8,0.001]
[1763783105127,1.93289264,2752.9,2752.8,0.001]
[1763783105331,1.0259,2752.9,2752.8,0.001]
[1763783105506,1.21938926,2752.9,2752.8,0.001]
[1763783106596,2.5318859,2752.9,2752.8,0.001]
[1763783108150,0.405504,2752.8,2752.6,0.001]
[1763783108314,3.69826015,2752.7,2752.6,0.001]
[1763783108519,4.15536015,2752.7,2752.6,0.001]
[1763783110831,0.867104,2752.7,2752.6,0.001]
[1763783111042,0.4616,2752.7,2752.6,0.001]
[1763783111445,0.50700996,2752.7,2752.6,0.001]
[1763783111952,0.4616,2752.7,2752.6,0.001]
[1763783112132,0.867104,2752.7,2752.6,0.001]
[1763783112444,4.59102616,2752.7,2752.6,0.001]
[1763783114442,0.91149264,2752.7,2752.6,0.001]
[1763783114638,0.2013,2752.9,2752.6,2.83636351]
[1763783115064,0.002,2752.9,2752.6,2.83636351]
[1763783115560,0.57219665,2752.9,2752.6,2.83636351]
[1763783116165,0.57219665,2752.9,2752.6,3.28866351]
[1763783116382,0.57219665,2752.9,2752.8,0.4541]
[1763783116867,0.002,2752.9,2752.8,0.4541]
[1763783117883,0.8299,2752.9,2752.6,0.001]
[1763783118042,0.0046,2752.7,2752.6,0.001]
[1763783118369,0.4657,2752.7,2752.6,0.001]
[1763783119164,0.002,2752.9,2752.6,0.4551]
[1763783119365,0.002,2752.9,2752.8,2.83561528]
[1763783119569,0.002,2752.9,2752.8,3.28791528]
[1763783119756,0.57211412,2752.9,2752.8,3.28791528]
[1763783122575,1.40001412,2752.9,2752.6,0.61835153]
[1763783122776,0.0046,2752.8,2752.6,0.001]
[1763783123182,0.57211412,2752.9,2752.7,2.83561528]
[1763783123375,0.57211412,2752.9,2752.8,0.4541]
[1763783124467,0.57211412,2752.9,2752.6,2.38251528]
[1763783124468,1.40001412,2752.9,2752.6,0.001]
[1763783124780,0.0046,2752.7,2752.6,0.001]
[1763783125167,0.50710996,2752.7,2752.6,0.001]
[1763783125367,0.70573163,2752.7,2752.6,0.001]
[1763783126099,0.66032167,2752.7,2752.6,0.001]
[1763783127269,0.70573163,2752.7,2752.6,0.001]
[1763783128573,2.01822827,2752.7,2752.6,0.001]
[1763783128763,1.11123563,2752.7,2752.6,0.001]
[1763783129197,1.06582567,2752.7,2752.6,0.001]
[1763783133618,0.867204,2752.7,2752.6,0.001]
[1763783134692,2.15813872,2752.7,2752.6,0.001]
[1763783134891,2.9381816,2752.7,2752.6,0.001]
[1763783135297,2.89277164,2752.7,2752.6,0.001]
[1763783135502,2.89253037,2752.7,2752.6,0.001]
[1763783136595,3.46291787,2752.7,2752.6,0.001]
[1763783136829,14.95440864,2752.6,2752.5,0.001]
[1763783137061,6.9618654,2752.6,2752.5,0.001]
[1763783137346,7.00727701,2752.6,2752.5,0.001]
[1763783137844,9.77164001,2752.6,2752.5,0.001]
[1763783138045,6.9618654,2752.6,2752.5,0.001]
[1763783138541,7.00727701,2752.6,2752.5,0.001]
[1763783138931,9.60876001,2752.6,2752.5,0.001]
[1763783139132,9.5633484,2752.6,2752.5,0.001]
[1763783139328,6.9618654,2752.6,2752.5,0.001]
[1763783139533,10.4176674,2752.6,2752.5,0.001]
[1763783140245,6.9618654,2752.6,2752.5,0.001]
[1763783141519,2.14039664,2752.6,2752.5,0.001]
[1763783143148,2.52418176,2752.6,2752.5,0.001]
[1763783143352,3.61327843,2752.6,2752.5,0.001]
[1763783144151,2.83363869,2752.6,2752.5,0.001]
[1763783145357,6.53677372,2752.6,2752.5,0.001]
[1763783145961,2.83363869,2752.6,2752.5,0.001]
[1763783146259,2.78822708,2752.6,2752.5,0.001]
[1763783148360,2.44985357,2752.6,2752.5,0.001]
[1763783149259,1.13735693,2752.6,2752.5,0.001]
[1763783149560,1.233404,2752.6,2752.5,0.001]
[1763783150543,0.4863,2752.9,2752.5,0.001]
[1763783150876,0.4863,2752.9,2752.5,0.9353]
[1763783150877,0.002,2752.9,2752.5,0.9353]
[1763783151029,0.407504,2752.9,2752.5,0.9353]
[1763783151337,0.4843,2752.8,2752.5,0.4621]
[1763783152163,1.31449664,2752.9,2752.5,0.4621]
[1763783152330,1.79879664,2752.9,2752.5,0.4621]
[1763783153534,0.407504,2752.9,2752.5,0.9353]
[1763783153743,0.891804,2752.9,2752.5,0.9353]
[1763783154528,0.891804,2752.9,2752.8,0.4611]
[1763783154529,0.002,2752.9,2752.8,0.4611]
[1763783154928,0.002,2752.9,2752.8,0.9343]
[1763783155167,0.002,2752.9,2752.8,1.26591655]
[1763783159375,0.002,2752.9,2752.8,0.79271655]
[1763783159559,0.04740666,2752.9,2752.8,0.4611]
[1763783159760,0.002,2752.9,2752.8,0.4611]
[1763783159948,0.002,2752.9,2752.8,0.9343]
[1763783163354,0.002,2752.9,2752.6,3.79]
[1763783163355,0.3511,2752.9,2752.6,3.79]
[1763783163554,0.0048,2752.7,2752.6,3.79]
[1763783164256,0.4891,2752.7,2752.5,0.001]
[1763783164443,0.3444,2752.6,2752.5,0.001]
[1763783164866,0.002,2752.9,2752.5,0.4621]
[1763783165188,0.3491,2752.6,2752.5,0.001]
[1763783166582,0.4843,2752.8,2752.5,0.001]
[1763783166948,0.3491,2752.6,2752.5,0.001]
[1763783167685,3.61606947,2752.6,2752.5,0.001]
[1763783167978,2.14119664,2752.6,2752.5,0.001]
[1763783168962,1.73569264,2752.6,2752.5,0.001]
[1763783170477,4.11755811,2752.6,2752.5,0.001]
[1763783171652,1.73569264,2752.6,2752.5,0.001]
[1763783172261,4.11755811,2752.6,2752.5,0.001]
[1763783172463,0.90699264,2752.6,2752.5,0.001]
[1763783172896,0.90699264,2752.6,2752.5,0.4709]
[1763783173095,1.26289264,2752.6,2752.5,0.4709]
[1763783173296,1.26289264,2752.6,2752.5,0.001]
[1763783174573,1.83322727,2752.6,2752.5,0.001]
[1763783175406,1.26289264,2752.6,2752.5,0.001]
[1763783176229,0.90899264,2752.6,2752.5,0.9476]
[1763783176388,0.90899264,2752.6,2752.5,0.4709]
[1763783177300,0.90899264,2752.6,2752.5,0.9476]
[1763783177976,0.90899264,2752.6,2752.5,0.4709]
[1763783178198,0.90899264,2752.6,2752.5,0.001]
[1763783178199,1.37019264,2752.6,2752.5,0.001]
[1763783178397,1.9405012,2752.6,2752.5,0.001]
[1763783178598,2.74483787,2752.6,2752.5,0.001]
[1763783178798,2.37273787,2752.6,2752.5,0.001]
[1763783179004,1.4793012,2752.6,2752.5,0.9476]
[1763783179309,0.57230856,2752.6,2752.5,0.9476]
[1763783179675,0.002,2752.6,2752.5,0.9476]
[1763783185125,0.002,2752.6,2752.5,4.7376]
[1763783185288,0.3559,2752.6,2752.5,3.791]
[1763783185685,0.76822759,2752.6,2752.5,3.791]
[1763783186011,3.15031084,2752.6,2752.5,3.791]
[1763783186210,4.53560348,2752.6,2752.5,3.791]
[1763783187023,2.15352023,2752.6,2752.5,3.791]
[1763783187716,4.53560348,2752.6,2752.5,3.791]
[1763783189415,8.4910317,2752.6,2752.5,3.791]
[1763783189628,8.44562009,2752.6,2752.5,3.791]
[1763783190429,8.44562009,2752.6,2752.5,0.001]
[1763783193009,9.01600572,2752.6,2752.5,0.001]
[1763783193532,8.44562009,2752.6,2752.5,0.001]
[1763783195034,1.31249664,2752.5,2752.3,0.001]
[1763783195333,11.61708441,2752.4,2752.3,0.001]
[1763783195503,12.0321695,2752.4,2752.3,0.001]
[1763783195703,12.48674697,2752.4,2752.3,0.001]
[1763783195904,24.17673897,2752.4,2752.3,0.001]
[1763783196098,24.59368292,2752.4,2752.3,0.001]
[1763783196301,23.70710692,2752.4,2752.3,0.001]
[1763783196513,24.27762239,2752.4,2752.3,0.001]
[1763783196935,10.40492939,2752.4,2752.3,0.001]
[1763783197148,24.30362239,2752.4,2752.3,0.001]
[1763783197353,24.723424,2752.4,2752.3,0.001]
[1763783197529,23.42030764,2752.4,2752.3,0.001]
[1763783197734,25.75938838,2752.4,2752.3,0.001]
[1763783197936,38.88261538,2752.4,2752.3,0.001]
[1763783198147,36.92886571,2752.4,2752.3,0.001]
[1763783198349,38.88261538,2752.4,2752.3,0.001]
[1763783198553,37.31582438,2752.4,2752.3,0.001]
[1763783198941,20.036755,2752.0,2751.9,0.001]
[1763783199132,29.50373667,2752.0,2751.9,0.001]
[1763783199338,29.97163667,2752.0,2751.9,0.001]
[1763783199940,10.34038567,2752.0,2751.9,0.001]
[1763783200141,34.07494067,2752.0,2751.9,0.001]
[1763783200878,31.37420467,2752.0,2751.9,0.001]
[1763783201067,17.4620092,2752.0,2751.9,0.001]
[1763783201230,16.06675142,2752.0,2751.9,0.001]
[1763783202062,1.12242936,2752.0,2751.9,0.4858]
[1763783202264,2.38208325,2752.2,2751.9,0.4858]
[1763783202437,2.71978325,2752.0,2751.9,0.001]
[1763783202636,2.76520476,2752.0,2751.9,0.001]
[1763783202832,2.71978325,2752.0,2751.9,0.001]
[1763783203040,0.405504,2752.1,2751.9,0.9701]
[1763783203332,0.405504,2752.1,2752.0,0.4848]
[1763783206372,1.92895536,2752.1,2752.0,0.001]
[1763783207116,1.59125536,2752.1,2752.0,0.4858]
[1763783207390,2.38408325,2752.5,2752.0,0.9701]
[1763783207391,0.002,2752.5,2752.0,0.9701]
[1763783207541,2.38208325,2752.2,2752.0,0.001]
[1763783207944,2.38208325,2752.2,2752.1,0.4848]
[1763783208185,1.31249664,2752.4,2752.1,1.1566]
[1763783208479,1.31249664,2752.4,2752.3,0.4848]
[1763783208680,1.68235463,2752.4,2752.0,0.001]
[1763783208866,0.9524092,2752.3,2752.0,0.001]
[1763783209177,0.002,2752.5,2752.3,0.4848]
[1763783209478,0.002,2752.5,2752.1,0.6718]
[1763783209479,0.743204,2752.4,2752.1,0.6718]
[1763783209687,0.78861891,2752.4,2752.1,0.6718]
[1763783210568,0.743204,2752.4,2752.1,0.6718]
[1763783212254,0.743204,2752.4,2752.0,0.001]
[1763783212455,0.4763,2752.1,2752.0,0.001]
[1763783213078,0.90699264,2752.2,2752.0,0.4858]
[1763783213279,0.49824358,2752.1,2752.0,0.4858]
[1763783214495,0.49824358,2752.1,2752.0,0.9701]
[1763783214679,1.31249664,2752.4,2752.0,0.9701]
[1763783215470,0.407504,2752.5,2752.3,0.4848]
[1763783215772,0.407504,2752.5,2752.4,0.4848]
[1763783215773,0.002,2752.5,2752.4,0.4848]
[1763783215984,0.002,2752.5,2752.4,0.9691]
[1763783221505,0.002,2752.5,2752.4,1.43783432]
[1763783222712,0.002,2752.5,2752.4,0.9691]
[1763783228203,0.002,2752.5,2752.4,0.4848]
[1763783232487,0.002,2752.5,2752.4,0.9558]
[1763783233207,0.57228538,2752.5,2752.4,0.9558]
[1763783236020,0.91128538,2752.5,2752.1,0.1875]
[1763783236203,0.91128538,2752.5,2752.1,0.6585]
[1763783236610,0.91128538,2752.5,2752.2,0.471]
[1763783237409,0.57228538,2752.5,2752.4,0.4911]
[1763783237941,0.57228538,2752.5,2752.4,0.9621]
[1763783238101,0.57228538,2752.5,2752.4,4.68034317]
[1763783238297,0.57228538,2752.5,2752.4,5.8992018]
[1763783238733,0.002,2752.5,2752.4,5.8992018]
[1763783238936,0.002,2752.5,2752.4,9.6892018]
[1763783240148,0.002,2752.5,2752.4,5.97095863]
[1763783240376,0.002,2752.5,2752.4,4.7521]
[1763783243730,0.002,2752.5,2752.4,4.2811]
[1763783244087,0.002,2752.5,2752.4,4.7521]
[1763783244447,0.002,2752.5,2752.4,0.9621]
[1763783251196,0.341,2752.5,2752.3,3.79]
[1763783251498,0.0049,2752.4,2752.3,3.79]
[1763783251643,0.002,2752.5,2752.3,3.79]
[1763783251961,0.002,2752.5,2752.4,0.9621]
[1763783252150,0.57227499,2752.5,2752.4,0.9621]
[1763783252352,0.002,2752.5,2752.4,0.9621]
[1763783252774,0.002,2752.5,2752.4,0.99843192]
[1763783252973,0.002,2752.5,2752.4,1.47727511]
[1763783253362,0.002,2752.5,2752.4,1.44094319]
[1763783255011,0.002,2752.5,2752.4,0.9621]
[1763783256271,0.002,2752.5,2752.4,4.7521]
[1763783256971,0.002,2752.5,2752.4,0.9621]
[1763783257880,0.002,2752.5,2752.4,0.4911]
[1763783258081,0.8356,2752.5,2752.0,0.466]
[1763783260102,0.3394,2752.1,2752.0,0.001]
[1763783260604,0.0034,2752.4,2752.0,0.001]
[1763783261111,0.4942,2752.1,2752.0,0.001]
[1763783263208,0.8336,2752.1,2752.0,0.001]
[1763783263416,1.15524015,2752.1,2752.0,0.001]
[1763783263702,2.06223279,2752.1,2752.0,0.001]
[1763783264834,1.72283279,2752.1,2752.0,0.001]
[1763783265103,1.40119264,2752.1,2752.0,0.001]
[1763783265681,0.90699264,2752.1,2752.0,0.4872]
[1763783266298,0.002,2752.5,2752.0,0.9522]
[1763783266494,0.002,2752.5,2752.0,0.4872]
[1763783266701,0.4514,2752.4,2752.0,0.4872]
[1763783266876,0.24068015,2752.5,2752.0,0.9522]
[1763783267511,0.002,2752.5,2752.1,0.6589]
[1763783268614,0.002,2752.5,2752.0,0.001]
[1763783268816,0.4534,2752.5,2752.0,0.001]
[1763783269113,0.57032981,2752.4,2752.0,0.001]
[1763783269486,0.57032981,2752.4,2752.3,0.4862]
[1763783270020,0.57032981,2752.4,2752.1,0.1939]
[1763783271916,0.57032981,2752.4,2752.0,0.001]
[1763783272219,0.3818,2752.1,2752.0,0.001]
[1763783272584,0.4507,2752.3,2752.0,0.4872]
[1763783272919,0.3825,2752.1,2752.0,0.001]
[1763783273821,0.4507,2752.3,2752.0,0.001]
[1763783276022,0.3825,2752.1,2752.0,0.001]
[1763783277191,0.8325,2752.1,2752.0,0.001]
[1763783278828,0.3825,2752.1,2752.0,0.001]
[1763783279916,0.8325,2752.1,2752.0,0.001]
[1763783280317,0.3825,2752.1,2752.0,0.001]
[1763783281120,0.8325,2752.1,2752.0,0.001]
[1763783281548,0.3825,2752.1,2752.0,0.001]
[1763783281719,0.3832,2752.1,2752.0,0.001]
[1763783282250,0.8325,2752.1,2752.0,0.001]
[1763783285754,1.24472941,2752.1,2752.0,0.001]
[1763783285923,0.8331,2752.1,2752.0,0.001]
[1763783286370,0.78267848,2752.4,2752.0,0.4725]
[1763783286665,0.4772,2752.4,2752.0,0.4725]
[1763783287155,0.4772,2752.4,2752.0,0.9373]
[1763783287729,0.3563,2752.1,2752.0,0.001]
[1763783288134,0.8322,2752.1,2752.0,0.001]
[1763783288649,0.3563,2752.1,2752.0,0.001]
[1763783290170,0.8322,2752.1,2752.0,0.001]
[1763783290330,1.73919264,2752.1,2752.0,0.001]
[1763783290532,2.20135357,2752.1,2752.0,0.001]
[1763783290970,1.24894107,2752.1,2752.0,0.001]
[1763783291183,0.8322,2752.1,2752.0,0.001]
[1763783291853,1.40259638,2752.1,2752.0,0.001]
[1763783292048,0.92669638,2752.1,2752.0,0.001]
[1763783292254,1.40259638,2752.1,2752.0,0.001]
[1763783293182,0.8322,2752.1,2752.0,0.001]
[1763783294186,2.38480146,2752.4,2752.0,0.4725]
[1763783294187,0.002,2752.4,2752.0,0.4725]
[1763783294389,0.002,2752.4,2752.3,0.4715]
[1763783294750,0.002,2752.4,2752.3,0.9363]
[1763783295361,0.3583,2752.4,2752.0,0.001]
[1763783295567,0.3583,2752.4,2752.1,0.23848015]
[1763783295768,0.8342,2752.4,2752.0,0.001]
[1763783295968,0.92861263,2752.4,2752.0,0.001]
[1763783296163,0.92861263,2752.4,2752.0,0.4658]
[1763783296364,0.4721,2752.1,2752.0,0.001]
[1763783297058,0.8334,2752.1,2752.0,0.001]
[1763783297279,0.4721,2752.1,2752.0,0.001]